fUSD/lending_fUSD_20240814
["ID","MTS","AMOUNT","RATE_DAILY","PERIOD"]
[334872146,1723620681478,-500.0,0.00015342,2]
[334872147,1723620681488,-525.21,0.00015342,2]
[334872148,1723620681499,-500.0,0.00015342,2]
[334872149,1723620681509,-500.0,0.00015342,2]
[334872150,1723620681518,-500.0,0.00015342,2]
[334872151,1723620681527,-597.92,0.00015342,2]
[334872152,1723620681537,-500.0,0.00015342,2]
[334872153,1723620681547,-500.0,0.00015342,2]
[334872154,1723620681555,-500.0,0.00015342,2]
[334872155,1723620681566,-500.0,0.00015342,2]
[334872156,1723620681575,-500.0,0.00015342,2]
[334872157,1723620681584,-802.41,0.00015342,2]
[334872158,1723620681593,-500.0,0.00015342,2]
[334872159,1723620681602,-506.88,0.00015342,2]
[334872160,1723620681611,-921.35,0.00015342,2]
[334872161,1723620681622,-500.0,0.00015342,2]
[334872162,1723620681631,-801.76,0.00015342,2]
[334872163,1723620681640,-500.0,0.00015342,2]
[334872164,1723620681649,-500.0,0.00015342,2]
[334872165,1723620681658,-512.5,0.00015342,2]
[334872166,1723620681667,-503.92,0.00015342,2]
[334872167,1723620681676,-511.42,0.00015342,2]
[334872168,1723620681685,-890.99,0.00015342,2]
[334872169,1723620681695,-641.13,0.00015342,2]
[334872170,1723620681704,-500.0,0.00015342,2]
[334872171,1723620681713,-500.0,0.00015342,2]
[334872172,1723620681722,-727.93,0.00015342,2]
[334872173,1723620681731,-662.34,0.00015342,2]
[334872174,1723620681741,-500.0,0.00015342,2]
[334872175,1723620681882,-500.0,0.00015342,2]
[334872176,1723620681892,-500.0,0.00015342,2]
[334872177,1723620681902,-500.0,0.00015342,2]
[334872178,1723620681912,-694.43,0.00015342,2]
[334872179,1723620681923,-570.68,0.00015342,2]
[334872180,1723620681933,-500.0,0.00015342,2]
[334872181,1723620681942,-500.0,0.00015342,2]
[334872182,1723620681951,-500.0,0.00015342,2]
[334872183,1723620681959,-500.0,0.00015342,2]
[334872184,1723620681968,-500.0,0.00015342,2]
[334872185,1723620681977,-1238.47,0.00015342,2]
[334872186,1723620681986,-500.0,0.00015342,2]
[334872187,1723620681995,-500.0,0.00015342,2]
[334872188,1723620682006,-500.0,0.00015342,2]
[334872189,1723620682015,-579.57,0.00015342,2]
[334872190,1723620682025,-500.0,0.00015342,2]
[334872191,1723620682034,-500.0,0.00015342,2]
[334872192,1723620682043,-500.0,0.00015342,2]
[334872193,1723620682052,-500.0,0.00015342,2]
[334872194,1723620682061,-1335.33,0.00015342,2]
[334872195,1723620682071,-829.86,0.00015342,2]
[334872196,1723620682080,-190.541969,0.00015342,2]
[334872197,1723620682090,-500.0,0.00015342,2]
[334872198,1723620682100,-500.0,0.00015342,2]
[334872199,1723620682110,-594.0,0.00015342,2]
[334872200,1723620682122,-190.541969,0.00015342,2]
[334872201,1723620682132,-544.43,0.00015342,2]
[334872202,1723620682142,-500.0,0.00015342,2]
[334872203,1723620682151,-500.0,0.00015342,2]
[334872204,1723620682160,-660.36,0.00015342,2]
[334872205,1723620682172,-500.0,0.00015342,2]
[334872206,1723620682181,-500.0,0.00015342,2]
[334872207,1723620682191,-644.0507048,0.00015342,2]
[334872208,1723620682201,-500.0,0.00015342,2]
[334872209,1723620682211,-500.0,0.00015342,2]
[334872210,1723620682220,-1025.59,0.00015342,2]
[334872211,1723620682230,-500.0,0.00015342,2]
[334872212,1723620682240,-500.0,0.00015342,2]
[334872213,1723620682250,-500.0,0.00015342,2]
[334872214,1723620682260,-500.0,0.00015342,2]
[334872215,1723620682270,-405.79969294,0.00015342,2]
[334872216,1723620682279,-975.8,0.00015342,2]
[334872217,1723620682290,-500.0,0.00015342,2]
[334872218,1723620682300,-500.0,0.00015342,2]
[334872219,1723620682310,-516.14,0.00015342,2]
[334872220,1723620682320,-500.0,0.00015342,2]
[334872221,1723620682330,-500.0,0.00015342,2]
[334872222,1723620682339,-151.0,0.00015342,2]
[334872223,1723620682349,-500.0,0.00015342,2]
[334872224,1723620682360,-500.0,0.00015342,2]
[334872225,1723620682371,-537.52,0.00015342,2]
[334872226,1723620682381,-500.0,0.00015342,2]
[334872227,1723620682391,-500.0,0.00015342,2]
[334872228,1723620682401,-500.0,0.00015342,2]
[334872229,1723620682412,-500.0,0.00015342,2]
[334872230,1723620682423,-500.0,0.00015342,2]
[334872231,1723620682432,-500.0,0.00015342,2]
[334872232,1723620682443,-500.0,0.00015342,2]
[334872233,1723620682454,-500.0,0.00015342,2]
[334872234,1723620682464,-500.0,0.00015342,2]
[334872235,1723620682474,-500.0,0.00015342,2]
[334872236,1723620682484,-617.54,0.00015342,2]
[334872237,1723620682494,-1108.96,0.00015342,2]
[334872238,1723620682504,-643.5,0.00015342,2]
[334872239,1723620682514,-500.0,0.00015342,2]
[334872240,1723620682524,-500.0,0.00015342,2]
[334872241,1723620682534,-721.48,0.00015342,2]
[334872242,1723620682544,-500.0,0.00015342,2]
[334872243,1723620682553,-500.0,0.00015342,2]
[334872244,1723620682563,-500.0,0.00015342,2]
[334872245,1723620682572,-500.0,0.00015342,2]
[334872246,1723620682582,-500.0,0.00015342,2]
[334872247,1723620682591,-500.0,0.00015342,2]
[334872248,1723620682600,-500.0,0.00015342,2]
[334872249,1723620682610,-951.16,0.00015342,2]
[334872250,1723620682621,-500.0,0.00015342,2]
[334872251,1723620682631,-500.0,0.00015342,2]
[334872252,1723620682641,-500.0,0.00015342,2]
[334872253,1723620682650,-500.0,0.00015342,2]
[334872254,1723620682660,-500.0,0.00015342,2]
[334872255,1723620682669,-500.0,0.00015342,2]
[334872256,1723620682679,-500.0,0.00015342,2]
[334872257,1723620682689,-500.0,0.00015342,2]
[334872258,1723620682699,-500.0,0.00015342,2]
[334872259,1723620682710,-500.0,0.00015342,2]
[334872260,1723620682720,-500.0,0.00015342,2]
[334872261,1723620682729,-517.4,0.00015342,2]
[334872262,1723620682739,-500.0,0.00015342,2]
[334872263,1723620682749,-500.0,0.00015342,2]
[334872264,1723620682759,-500.0,0.00015342,2]
[334872265,1723620682768,-1099.42,0.00015342,2]
[334872266,1723620682777,-500.0,0.00015342,2]
[334872267,1723620682786,-500.0,0.00015342,2]
[334872268,1723620682797,-720.96,0.00015342,2]
[334872269,1723620682808,-545.17,0.00015342,2]
[334872270,1723620682817,-381.52,0.00015342,2]
[334872271,1723620682826,-451.15071228,0.00015342,2]
[334872272,1723620682835,-538.44411956,0.00015342,2]
[334872273,1723620682845,-502.3,0.00015342,2]
[334872274,1723620682854,-500.0,0.00015342,2]
[334872275,1723620682863,-500.0,0.00015342,2]
[334872276,1723620682873,-500.0,0.00015342,2]
[334872277,1723620682883,-151.0,0.00015342,2]
[334872278,1723620682893,-500.0,0.00015342,2]
[334872279,1723620682903,-500.0,0.00015342,2]
[334872280,1723620682913,-500.0,0.00015342,2]
[334872281,1723620682922,-500.0,0.00015342,2]
[334872282,1723620682931,-500.0,0.00015342,2]
[334872283,1723620682940,-169.736676,0.00015342,2]
[334872284,1723620682950,-500.0,0.00015342,2]
[334872285,1723620682960,-500.0,0.00015342,2]
[334872286,1723620682970,-500.0,0.00015342,2]
[334872287,1723620682979,-500.0,0.00015342,2]
[334872288,1723620682989,-169.736676,0.00015342,2]
[334872289,1723620682999,-420.32422736,0.00015342,2]
[334872290,1723620683008,-500.0,0.00015342,2]
[334872291,1723620683017,-500.0,0.00015342,2]
[334872292,1723620683027,-500.0,0.00015342,2]
[334872293,1723620683036,-500.0,0.00015342,2]
[334872294,1723620683046,-500.0,0.00015342,2]
[334872295,1723620683055,-500.0,0.00015342,2]
[334872296,1723620683065,-500.0,0.00015342,2]
[334872297,1723620683074,-376.99481248,0.00015342,2]
[334872298,1723620683084,-862.74,0.00015342,2]
[334872299,1723620683093,-500.0,0.00015342,2]
[334872300,1723620683102,-552.06,0.00015342,2]
[334872301,1723620683112,-500.0,0.00015342,2]
[334872302,1723620683123,-500.0,0.00015342,2]
[334872303,1723620683132,-500.0,0.00015342,2]
[334872304,1723620683142,-648.18,0.00015342,2]
[334872305,1723620683155,-860.96,0.00015342,2]
[334872306,1723620683164,-500.0,0.00015342,2]
[334872307,1723620683175,-500.0,0.00015342,2]
[334872308,1723620683184,-1377.93,0.00015342,2]
[334872309,1723620683194,-1553.5,0.00015342,2]
[334872310,1723620683203,-507.15993623,0.00015342,2]
[334872311,1723620683213,-500.0,0.00015342,2]
[334872312,1723620683222,-875.79,0.00015342,2]
[334872313,1723620683231,-500.0,0.00015342,2]
[334872314,1723620683241,-500.0,0.00015342,2]
[334872315,1723620683251,-500.0,0.00015342,2]
[334872316,1723620683261,-500.0,0.00015342,2]
[334872317,1723620683270,-500.0,0.00015342,2]
[334872318,1723620683279,-517.31,0.00015342,2]
[334872319,1723620683289,-500.0,0.00015342,2]
[334872320,1723620683298,-802.23,0.00015342,2]
[334872321,1723620683308,-500.0,0.00015342,2]
[334872322,1723620683318,-577.94,0.00015342,2]
[334872323,1723620683327,-500.0,0.00015342,2]
[334872324,1723620683337,-500.0,0.00015342,2]
[334872325,1723620683346,-557.73,0.00015342,2]
[334872326,1723620683356,-500.0,0.00015342,2]
[334872327,1723620683366,-500.0,0.00015342,2]
[334872328,1723620683376,-575.4,0.00015342,2]
[334872329,1723620683385,-603.71,0.00015342,2]
[334872330,1723620683394,-500.0,0.00015342,2]
[334872331,1723620683404,-583.2,0.00015342,2]
[334872332,1723620683413,-500.0,0.00015342,2]
[334872333,1723620683424,-659.68,0.00015342,2]
[334872334,1723620683439,-500.0,0.00015342,2]
[334872335,1723620683449,-458.35370884,0.00015342,2]
[334872336,1723620683459,-501.07,0.00015342,2]
[334872337,1723620683470,-500.0,0.00015342,2]
[334872338,1723620683480,-500.0,0.00015342,2]
[334872339,1723620683490,-509.16,0.00015342,2]
[334872340,1723620683501,-500.0,0.00015342,2]
[334872341,1723620683510,-500.0,0.00015342,2]
[334872342,1723620683520,-642.16,0.00015342,2]
[334872343,1723620683530,-542.76,0.00015342,2]
[334872344,1723620683541,-500.0,0.00015342,2]
[334872345,1723620683552,-500.0,0.00015342,2]
[334872346,1723620683561,-500.0,0.00015342,2]
[334872347,1723620683571,-500.0,0.00015342,2]
[334872348,1723620683581,-714.09,0.00015342,2]
[334872349,1723620683591,-500.0,0.00015342,2]
[334872350,1723620683601,-1105.55,0.00015342,2]
[334872351,1723620683610,-646.97,0.00015342,2]
[334872352,1723620683621,-1302.61,0.00015342,2]
[334872353,1723620683630,-500.0,0.00015342,2]
[334872354,1723620683640,-132.1238613,0.00015342,2]
[334872355,1723620683665,-367.8761387,0.00015342,2]
[334872356,1723620683675,-500.0,0.00015342,2]
[334872357,1723620683685,-1927.63,0.00015342,2]
[334872358,1723620683694,-538.83,0.00015342,2]
[334872359,1723620683704,-500.0,0.00015342,2]
[334872360,1723620683714,-151.0,0.00015342,2]
[334872361,1723620683724,-3771.24,0.00015342,2]
[334872362,1723620683734,-500.0,0.00015342,2]
[334872363,1723620683744,-500.0,0.00015342,2]
[334872364,1723620683753,-500.0,0.00015342,2]
[334872365,1723620683763,-2583.53,0.00015342,2]
[334872366,1723620683773,-500.0,0.00015342,2]
[334872367,1723620683782,-589.05,0.00015342,2]
[334872368,1723620683791,-638.08,0.00015342,2]
[334872369,1723620683801,-705.12,0.00015342,2]
[334872370,1723620683811,-500.0,0.00015342,2]
[334872371,1723620683822,-1567.35,0.00015342,2]
[334872372,1723620683832,-2757.25,0.00015342,2]
[334872373,1723620683844,-642.62,0.00015342,2]
[334872374,1723620683854,-5777.23,0.00015342,2]
[334872375,1723620683863,-12612.61,0.00015342,2]
[334872376,1723620683875,-500.0,0.00015342,2]
[334872377,1723620683885,-500.0,0.00015342,2]
[334872378,1723620683895,-500.0,0.00015342,2]
[334872379,1723620683905,-724.19,0.00015342,2]
[334872380,1723620683915,-675.15,0.00015342,2]
[334872381,1723620683924,-2454.92,0.00015342,2]
[334872382,1723620683935,-699.56,0.00015342,2]
[334872383,1723620683944,-3995.99,0.00015342,2]
[334872384,1723620683955,-1562.13,0.00015342,2]
[334872385,1723620683965,-500.0,0.00015342,2]
[334872386,1723620683974,-500.0,0.00015342,2]
[334872387,1723620683984,-1021.09,0.00015342,2]
[334872388,1723620683994,-500.0,0.00015342,2]
[334872389,1723620684003,-708.56,0.00015342,2]
[334872390,1723620684013,-716.38,0.00015342,2]
[334872391,1723620684023,-1012.52,0.00015342,2]
[334872392,1723620684032,-226.2923118,0.00015342,2]
[334872393,1723620684043,-151.0,0.00015342,2]
[334872394,1723620684052,-1574.06,0.00015342,2]
[334872395,1723620684061,-500.0,0.00015342,2]
[334872396,1723620684231,-500.0,0.00015342,2]
[334872397,1723620684241,-650.58,0.00015342,2]
[334872398,1723620684251,-590.62,0.00015342,2]
[334872399,1723620684260,-4431.9,0.00015342,2]
[334872400,1723620684270,-777.75,0.00015342,2]
[334872401,1723620684279,-500.0,0.00015342,2]
[334872402,1723620684288,-500.0,0.00015342,2]
[334872403,1723620684298,-500.0,0.00015342,2]
[334872404,1723620684307,-500.0,0.00015342,2]
[334872405,1723620684316,-626.17,0.00015342,2]
[334872406,1723620684326,-1296.7,0.00015342,2]
[334872407,1723620684335,-500.0,0.00015342,2]
[334872408,1723620684345,-3542.6,0.00015342,2]
[334872409,1723620684357,-35269.02,0.00015342,2]
[334872410,1723620684368,-561.92,0.00015342,2]
[334872411,1723620684377,-743.95,0.00015342,2]
[334872412,1723620684387,-3665.95,0.00015342,2]
[334872413,1723620684396,-763.73,0.00015342,2]
[334872414,1723620684406,-500.0,0.00015342,2]
[334872415,1723620684416,-1584.45,0.00015342,2]
[334872416,1723620684428,-500.0,0.00015342,2]
[334872417,1723620684439,-849.11,0.00015342,2]
[334872418,1723620684448,-500.0,0.00015342,2]
[334872419,1723620684458,-500.0,0.00015342,2]
[334872420,1723620684468,-500.0,0.00015342,2]
[334872421,1723620684478,-3814.92,0.00015342,2]
[334872422,1723620684487,-977.72,0.00015342,2]
[334872423,1723620684496,-1423.61,0.00015342,2]
[334872424,1723620684506,-1036.45,0.00015342,2]
[334872425,1723620684516,-875.75,0.00015342,2]
[334872426,1723620684527,-151.0,0.00015342,2]
[334872427,1723620684537,-1638.4,0.00015342,2]
[334872428,1723620684547,-3123.04,0.00015342,2]
[334872429,1723620684556,-500.0,0.00015342,2]
[334872430,1723620684566,-4390.31,0.00015342,2]
[334872431,1723620684576,-500.0,0.00015342,2]
[334872432,1723620684586,-500.0,0.00015342,2]
[334872433,1723620684595,-345.908315,0.00015342,2]
[334872434,1723620684604,-228.06660052,0.00015342,2]
[334872435,1723620684614,-1041.59,0.00015342,2]
[334872436,1723620684625,-500.0,0.00015342,2]
[334872437,1723620684634,-2253.8,0.00015342,2]
[334872438,1723620684643,-345.908315,0.00015342,2]
[334872439,1723620684652,-2098.0,0.00015342,2]
[334872440,1723620684663,-500.0,0.00015342,2]
[334872441,1723620684672,-500.0,0.00015342,2]
[334872442,1723620684682,-672.57,0.00015342,2]
[334872443,1723620684691,-1025.9,0.00015342,2]
[334872444,1723620684701,-500.0,0.00015342,2]
[334872445,1723620684711,-500.0,0.00015342,2]
[334872446,1723620684720,-500.0,0.00015342,2]
[334872447,1723620684730,-1015.73,0.00015342,2]
[334872448,1723620684739,-440.92149354,0.00015342,2]
[334872449,1723620684749,-1149.64,0.00015342,2]
[334872450,1723620684758,-500.0,0.00015342,2]
[334872451,1723620684768,-500.0,0.00015342,2]
[334872452,1723620684777,-1020.09,0.00015342,2]
[334872453,1723620684787,-500.0,0.00015342,2]
[334872454,1723620684796,-500.0,0.00015342,2]
[334872455,1723620684805,-637.53,0.00015342,2]
[334872456,1723620684815,-500.0,0.00015342,2]
[334872457,1723620684825,-500.0,0.00015342,2]
[334872458,1723620684834,-500.0,0.00015342,2]
[334872459,1723620684843,-500.0,0.00015342,2]
[334872460,1723620684853,-598.95,0.00015342,2]
[334872461,1723620684863,-3408.8,0.00015342,2]
[334872462,1723620684875,-500.0,0.00015342,2]
[334872463,1723620684884,-500.0,0.00015342,2]
[334872464,1723620684894,-1220.39,0.00015342,2]
[334872465,1723620684904,-500.0,0.00015342,2]
[334872466,1723620684913,-828.63,0.00015342,2]
[334872467,1723620684922,-1276.97,0.00015342,2]
[334872468,1723620684931,-5042.49,0.00015342,2]
[334872469,1723620684940,-500.0,0.00015342,2]
[334872470,1723620684950,-500.0,0.00015342,2]
[334872471,1723620684959,-648.84,0.00015342,2]
[334872472,1723620684970,-849.43,0.00015342,2]
[334872473,1723620684979,-1088.84,0.00015342,2]
[334872474,1723620684989,-697.5,0.00015342,2]
[334872475,1723620684998,-1178.52,0.00015342,2]
[334872476,1723620685008,-500.0,0.00015342,2]
[334872477,1723620685018,-690.09,0.00015342,2]
[334872478,1723620685027,-618.66,0.00015342,2]
[334872479,1723620685037,-866.59,0.00015342,2]
[334872480,1723620685046,-500.0,0.00015342,2]
[334872481,1723620685055,-1000.0,0.00015342,2]
[334872482,1723620685064,-1000.0,0.00015342,2]
[334872483,1723620685073,-2098.19,0.00015342,2]
[334872484,1723620685083,-151.0,0.00015342,2]
[334872485,1723620685092,-500.0,0.00015342,2]
[334872486,1723620685101,-1862.93,0.00015342,2]
[334872487,1723620685110,-1000.0,0.00015342,2]
[334872488,1723620685122,-1000.0,0.00015342,2]
[334872489,1723620685131,-536.05,0.00015342,2]
[334872490,1723620685140,-1026.42,0.00015342,2]
[334872491,1723620685150,-770.83,0.00015342,2]
[334872492,1723620685159,-500.0,0.00015342,2]
[334872493,1723620685169,-500.0,0.00015342,2]
[334872494,1723620685178,-152.50947215,0.00015342,2]
[334872495,1723620685191,-1870.48052785,0.00015342,2]
[334872496,1723620685202,-926.67,0.00015342,2]
[334872497,1723620685212,-1308.09,0.00015342,2]
[334872498,1723620685221,-461.19130106,0.00015342,2]
[334872499,1723620687264,227.80268088,9.584e-05,2]
[334872501,1723620739804,227.80268088,9.584e-05,2]
[334872506,1723621117855,94.44463824,9.584e-05,2]
[334872507,1723621117879,133.35804264,9.584e-05,2]
[334872510,1723621225871,227.80268088,9.584e-05,2]
[334872572,1723621832285,-783.0,9.781e-05,2]
[334872574,1723621832295,-550.0,0.0001,2]
[334872576,1723621832306,-308.06435349,0.0001,2]
[334872577,1723621832315,-157.98,0.0001063,2]
[334872578,1723621832325,-1099.14,0.00010649,2]
[334872579,1723621832335,-500.0,0.00010684,2]
[334872580,1723621832344,-500.0,0.00010684,2]
[334872581,1723621832354,-500.0,0.00010684,2]
[334872582,1723621832363,-300.0,0.00010898,2]
[334872583,1723621832373,-6385.89416061,0.000109,2]
[334872600,1723621838333,-995.36520928,0.000109,2]
[334872601,1723621838376,-68.33523011,0.000109,2]
[334872602,1723621838386,-500.0,0.00010919,2]
[334872603,1723621838395,-45.65247293,0.00010932,2]
[334872604,1723621838408,-104.34752707,0.00010932,2]
[334872605,1723621838418,-279.95405742,0.00010959,2]
[334872606,1723621838493,-20.03594258,0.00010959,2]
[334872607,1723621838502,-232.07,0.00010959,2]
[334872608,1723621838512,-193.39,0.00010959,2]
[334872609,1723621838521,-161.16,0.00010959,2]
[334872610,1723621838531,-805.83,0.00010959,2]
[334872611,1723621838541,-1444.8273586,0.00010959,2]
[334872612,1723621838550,-2000.0,0.00010959,2]
[334872613,1723621838559,-250.0,0.00010959,2]
[334872614,1723621838569,-6522.66259449,0.00011,2]
[334872615,1723621838579,-1257.73185636,0.00011104,2]
[334872616,1723621838589,-165.8098074,0.00011105,2]
[334872617,1723621838600,-477.78300306,0.00011105,2]
[334872618,1723621838610,-23737.16126312,0.00011176,2]
[334872619,1723621838620,-150.0,0.00011185,2]
[334872620,1723621838630,-8490.22,0.00011186,2]
[334872621,1723621838640,-578.94042281,0.00011186,7]
[334872622,1723621838650,-304.00880554,0.0001122,2]
[334872624,1723621838660,-259.9487,0.00011221,2]
[334872626,1723621838669,-3785.2552,0.00011221,2]
[334872628,1723621838679,-96278.51774241,0.00011321,2]
[334872630,1723621838688,-3163.4399,0.00011425,2]
[334872632,1723621838698,-350.95,0.00011432,2]
[334872634,1723621838707,-500.0,0.00011506,2]
[334872636,1723621838717,-522.9745894,0.00011524,2]
[334872638,1723621838726,-499.99,0.00011525,2]
[334872640,1723621838736,-2692.89148122,0.00011617,2]
[334872642,1723621838746,-293.95175179,0.00011617,2]
[334872643,1723621838755,-1994.19,0.00011687,2]
[334872644,1723621838765,-250.0,0.00011699,2]
[334872645,1723621838774,-1000.0,0.00011731,2]
[334872646,1723621838784,-219.28,0.00011866,2]
[334872647,1723621838795,-262.0,0.00011988,2]
[334872648,1723621838807,-5000.0,0.00012,2]
[334872649,1723621838818,-600.0,0.00012,2]
[334872650,1723621838827,-783.0,0.00012045,2]
[334872651,1723621838837,-150.0,0.00012236,2]
[334872652,1723621838848,-500.0,0.00012328,2]
[334872653,1723621838857,-500.0,0.00012328,2]
[334872654,1723621838866,-5504.05,0.00012652,2]
[334872655,1723621838877,-2840.77514623,0.0001269,2]
[334872656,1723621838887,-1406.37135649,0.00012749,2]
[334872657,1723621838897,-277.75,0.00012809,2]
[334872658,1723621838907,-500.0,0.00012876,2]
[334872659,1723621838917,-500.0,0.00012876,2]
[334872660,1723621838927,-1298.45974265,0.00012994,2]
[334872661,1723621838937,-444.0752,0.00012995,2]
[334872662,1723621838946,-500.0,0.0001315,2]
[334872663,1723621838955,-10000.0,0.00013176,2]
[334872664,1723621838965,-1000.0,0.00013197,2]
[334872665,1723621838975,-155.0,0.00013277,2]
[334872666,1723621838984,-1000.0,0.00013278,2]
[334872668,1723621838995,-2500.0,0.00013278,2]
[334872670,1723621839005,-164.66981099,0.00013299,2]
[334872671,1723621839014,-1210.0,0.000133,2]
[334872673,1723621839025,-11498.7595,0.00013378,2]
[334872675,1723621839034,-410.6502,0.00013562,2]
[334872677,1723621839044,-186.79076405,0.00013598,2]
[334872679,1723621839056,-317.61944198,0.00013598,2]
[334872681,1723621839067,-658.0173,0.00013598,2]
[334872683,1723621839076,-1000.0,0.00013598,2]
[334872684,1723621839087,-225.54,0.00013688,2]
[334872686,1723621839098,-161.821686,0.00013698,2]
[334872688,1723621839107,-179.280187,0.00013698,2]
[334872690,1723621839118,-500.0,0.00013698,2]
[334872692,1723621839128,-154.515367,0.00013698,2]
[334872694,1723621839138,-587.82,0.00013698,2]
[334872695,1723621839147,-511.04,0.00013698,2]
[334872697,1723621839156,-726.46,0.00013698,2]
[334872699,1723621839165,-500.0,0.00013698,2]
[334872700,1723621839175,-500.0,0.00013698,2]
[334872702,1723621839184,-500.0,0.00013698,2]
[334872704,1723621839193,-691.2,0.00013698,2]
[334872705,1723621839203,-500.0,0.00013698,2]
[334872707,1723621839212,-500.0,0.00013698,2]
[334872709,1723621839221,-500.0,0.00013698,2]
[334872711,1723621839231,-778.75,0.00013698,2]
[334872713,1723621839240,-500.0,0.00013698,2]
[334872714,1723621839250,-500.0,0.00013698,2]
[334872716,1723621839259,-645.27588895,0.00013698,2]
[334872718,1723621839268,-500.0,0.00013698,2]
[334872720,1723621839278,-609.48385015,0.00013698,2]
[334872721,1723621839287,-500.0,0.00013698,2]
[334872723,1723621839297,-500.0,0.00013698,2]
[334872725,1723621839306,-500.0,0.00013698,2]
[334872726,1723621839317,-500.0,0.00013698,2]
[334872727,1723621839326,-500.0,0.00013698,2]
[334872728,1723621839335,-500.0,0.00013698,2]
[334872729,1723621839344,-500.0,0.00013698,2]
[334872730,1723621839353,-500.0,0.00013698,2]
[334872731,1723621839363,-500.0,0.00013698,2]
[334872732,1723621839371,-500.0,0.00013698,2]
[334872733,1723621839380,-500.0,0.00013698,2]
[334872734,1723621839389,-500.0,0.00013698,2]
[334872735,1723621839399,-1100.39,0.00013698,2]
[334872736,1723621839408,-500.0,0.00013698,2]
[334872737,1723621839417,-153.78167154,0.00013698,2]
[334872738,1723621839427,-500.0,0.00013698,2]
[334872739,1723621839436,-568.25,0.00013698,2]
[334872740,1723621839445,-500.0,0.00013698,2]
[334872741,1723621839455,-500.0,0.00013698,2]
[334872742,1723621839464,-500.0,0.00013698,2]
[334872743,1723621839474,-500.0,0.00013698,2]
[334872744,1723621839483,-500.0,0.00013698,2]
[334872745,1723621839493,-500.0,0.00013698,2]
[334872746,1723621839502,-500.0,0.00013698,2]
[334872747,1723621839511,-500.0,0.00013698,2]
[334872748,1723621839521,-500.0,0.00013698,2]
[334872749,1723621839531,-500.0,0.00013698,2]
[334872750,1723621839540,-500.0,0.00013698,2]
[334872751,1723621839553,-500.0,0.00013698,2]
[334872752,1723621839564,-505.81,0.00013698,2]
[334872753,1723621839574,-512.97,0.00013698,2]
[334872754,1723621839672,-500.0,0.00013698,2]
[334872755,1723621839682,-500.0,0.00013698,2]
[334872756,1723621839691,-500.0,0.00013698,2]
[334872757,1723621839700,-500.0,0.00013698,2]
[334872758,1723621839709,-500.0,0.00013698,2]
[334872759,1723621839718,-500.0,0.00013698,2]
[334872760,1723621839727,-500.0,0.00013698,2]
[334872761,1723621839736,-500.0,0.00013698,2]
[334872762,1723621839745,-500.0,0.00013698,2]
[334872763,1723621839754,-500.0,0.00013698,2]
[334872764,1723621839764,-500.0,0.00013698,2]
[334872765,1723621839773,-500.0,0.00013698,2]
[334872766,1723621839783,-380.86935031,0.00013698,2]
[334872767,1723621839792,-500.0,0.00013698,2]